Workbook

Sheet Superpesis
B1: Salla Risku | E1: 19.7.1986 Seinäjoki
B2: SUPERPESIS | E2: Runkosarja | I2: Kärkilyönnit (KL), pesänvälit | P2: Ylempi loppusarja | U2: Alempi loppusarja | Z2: Arvo-ottelut ja mitalit
B3: Vuosi | C3: Sija | D3: Seura | E3: OTT | F3: KUN | G3: LÖI | H3: TOI | I3: KL | J3: 0 > 1 | K3: 1 > 2 | L3: 2 > 3 | M3: 3 > k | N3: KL-% | P3: OTT | Q3: KUN | R3: LÖI | S3: TOI | T3: KL | U3: OTT | V3: KUN | W3: LÖI | X3: TOI | Y3: KL | Z3: IL | AA3: LL | AB3: Halli | AC3: K | AD3: H | AE3: P
B4: 2002 | D4: Virkiä 2 | F4: suomensarja | O4: 0
B5: 2003 | D5: Virkiä 2 | F5: suomensarja
B6: 2003 | C6: 5. | D6: Virkiä | E6: 2 | F6: 0 | G6: 0 | H6: 0 | I6: 2 | J6: 0 | K6: 2 | L6: 0 | M6: 0 | N6: 40.0 % | O6: =PRODUCT(I6/N6) -> 5
B7: 2004 | D7: Virkiä | F7: tyttöjen superpesis | O7: 0
B8: 2004 | D8: Virkiä 2 | F8: suomensarja
B9: 2005 | D9: Virkiä 2 | F9: ykköspesis
B10: 2005 | C10: 3. | D10: Virkiä | E10: 1 | F10: 0 | G10: 0 | H10: 0 | I10: 0 | J10: 0 | K10: 0 | L10: 0 | M10: 0 | N10: 0.0 % | AE10: 1
B11: 2006 | C11: 7. | D11: TyTe | E11: 20 | F11: 1 | G11: 10 | H11: 5 | I11: 63 | J11: 19 | K11: 13 | L11: 20 | M11: 11 | N11: 50.0 % | O11: 126 | P11: 7 | Q11: 0 | R11: 1 | S11: 1 | T11: 13
B12: 2007 | C12: 5. | D12: TyTe | E12: 20 | F12: 0 | G12: 5 | H12: 4 | I12: 34 | J12: 10 | K12: 5 | L12: 14 | M12: 5 | N12: 37.4 % | O12: 91.00642398 | P12: 7 | Q12: 0 | R12: 1 | S12: 1 | T12: 10
B13: 2008 | C13: 7. | D13: TyTe | E13: 20 | F13: 0 | G13: 7 | H13: 3 | I13: 55 | J13: 9 | K13: 13 | L13: 26 | M13: 7 | N13: 47.0 % | O13: 117.0212766 | P13: 7 | Q13: 0 | R13: 1 | S13: 1 | T13: 11
B14: 2009 | C14: 5. | D14: Pesä Ysit | E14: 24 | F14: 0 | G14: 19 | H14: 3 | I14: 77 | J14: 9 | K14: 18 | L14: 31 | M14: 19 | N14: 46.1 % | O14: 167.0281996 | P14: 3 | Q14: 0 | R14: 1 | S14: 0 | T14: 6
B15: 2010 | C15: 4. | D15: Pesä Ysit | E15: 24 | F15: 0 | G15: 13 | H15: 1 | I15: 92 | J15: 47 | K15: 10 | L15: 22 | M15: 13 | N15: 58.6 % | O15: 157.0233828 | P15: 9 | Q15: 0 | R15: 2 | S15: 2 | T15: 28
B16: 2011 | C16: 4. | D16: Pesä Ysit | E16: 22 | F16: 1 | G16: 19 | H16: 10 | I16: 81 | J16: 21 | K16: 16 | L16: 24 | M16: 20 | N16: 56.6 % | O16: =PRODUCT(I16/N16) -> 143.1095406 | P16: 11 | Q16: 0 | R16: 0 | S16: 0 | T16: 24 | Z16: 1
B17: 2012 | C17: 5. | D17: Pesä Ysit | E17: 20 | F17: 0 | G17: 11 | H17: 6 | I17: 61 | J17: 19 | K17: 16 | L17: 15 | M17: 11 | N17: 42.7 % | O17: =PRODUCT(I17/N17) -> 142.8571429 | P17: 3 | Q17: 1 | R17: 1 | S17: 1 | T17: 13 | Z17: 1 | AA17: 1
B18: Yhteensä | E18: =SUM(E6:E17) -> 153 | F18: 2 | G18: 84 | H18: 32 | I18: 465 | J18: 134 | K18: 93 | L18: 152 | M18: 86 | N18: =PRODUCT(I18/O18) -> 49.3 % | O18: =SUM(O11:O17) -> 944.0459665 | P18: =SUM(P6:P17) -> 47 | Q18: 1 | R18: 7 | S18: 6 | T18: 105 | U18: 0 | V18: 0 | W18: 0 | X18: 0 | Y18: 0 | Z18: 2 | AA18: 1 | AB18: 0 | AC18: 0 | AD18: 0 | AE18: 1
B19: Pesispörssi | D19: =SUM(F18:H18)+((I18-F18-G18)/3)+(E18/3)+(Z18*25)+(AA18*25)+(AB18*10)+(AC18*25)+(AD18*20)+(AE18*15)-15 -> 370.3
B21: URA SUPERISSA | E21: OTT | F21: KUN | G21: LÖI | H21: TOI | I21: KL | K21: ka/L | L21: ka/T | M21: ka/KL | N21: KL-% | P21: ENSIMMÄISET
B22: Runkosarja | E22: =PRODUCT(E18) -> 153 | F22: =PRODUCT(F18) -> 2 | G22: =PRODUCT(G18) -> 84 | H22: =PRODUCT(H18) -> 32 | I22: =PRODUCT(I18) -> 465 | K22: =PRODUCT((F22+G22)/E22) -> 0.56 | L22: =PRODUCT(H22/E22) -> 0.21 | M22: =PRODUCT(I22/E22) -> 3.04 | N22: =PRODUCT(N18) -> 49.3 % | O22: =PRODUCT(O18) -> 944.0459665 | P22: Ottelu | R22: 20.05. 2005 YPJ - Virkiä 0-2 (2-3, 2-3) | Z22: 1. ottelu | AB22: 18 v 10 kk 1 pv
B23: Ylempi loppusarja | E23: =SUM(P18) -> 47 | F23: =SUM(Q18) -> 1 | G23: =SUM(R18) -> 7 | H23: =SUM(S18) -> 6 | I23: =SUM(T18) -> 105 | K23: =PRODUCT((F23+G23)/E23) -> 0.17 | L23: =PRODUCT(H23/E23) -> 0.13 | M23: =PRODUCT(I23/E23) -> 2.23 | N23: 38.0 % | O23: =PRODUCT(I23/N23) -> 276.3157895 | P23: Lyöty | R23: 24.05. 2006 YPJ - TyTe 0-2 (0-8, 1-3) | Z23: 4. ottelu | AB23: 18 v 10 kk 5 pv
B24: Alempi loppusarja | P24: Tuotu | R24: 24.05. 2006 YPJ - TyTe 0-2 (0-8, 1-3) | Z24: 4. ottelu | AB24: 18 v 10 kk 5 pv
B25: KAIKKI | E25: =SUM(E22:E24) -> 200 | F25: =SUM(F22:F24) -> 3 | G25: =SUM(G22:G24) -> 91 | H25: =SUM(H22:H24) -> 38 | I25: =SUM(I22:I24) -> 570 | K25: =PRODUCT((F25+G25)/E25) -> 0.47 | L25: =PRODUCT(H25/E25) -> 0.19 | M25: =PRODUCT(I25/E25) -> 2.85 | N25: =PRODUCT(I25/O25) -> 46.7 % | O25: =SUM(O22:O24) -> 1220.361756 | P25: Kunnari | R25: 11.06. 2006 HP - TyTe 1-2 (2-1, 4-8, 1-2) | Z25: 8. ottelu | AB25: 18 v 10 kk 22 pv
B27: Tyttöpesäpalloilija 2005
B29: Seurat | D29: SMJ = Seinäjoen Maila-Jussit (1932), kasvattajaseura
D30: Virkiä = Lapuan Virkiä (1907)
D31: TyTe = Tyrnävän Tempaus (1922)
D32: Pesä Ysit = Pesä Ysit, Lappeenranta (1976)

Sheet Arvo-ottelut
B1: ITÄ - LÄNSI - KORTTI
B2: Salla Risku | C2: 19.7.1986 Seinäjoki
B3: NAISET | C3: Itä - Länsi, tulos | D3: Joukkue | E3: Seura | G3: V | H3: T | I3: H | J3: Up. | K3: Lj. | L3: Palk. | M3: O | N3: K | O3: L | P3: T | Q3: KL | R3: 1 | S3: 2 | T3: 3 | U3: k | V3: KL-% | W3: Pelinjohtaja | X3: Yleisöä
B4: 23.07. 2011 Kouvola | C4: 0-2 (1-5, 3-4) | D4: Itä | E4: Pesä Ysit | I4: 1 | J4: L | K4: 7 | M4: 1 | Q4: 2/3 | R4: 0/1 | S4: 2/2 | V4: 66.7 % | W4: Jani Valkeapää | X4: 3128
B5: 27.06. 2012 Sotkamo | C5: 0-2 (3-4, 0-1) | D5: Itä | E5: Pesä Ysit | I5: 1 | K5: jok | M5: 1 | Q5: 1/4 | R5: 1/1 | S5: 0/3 | V5: 25.0 % | W5: Jussi Viljanen | X5: 3110
B6: Yhteensä | I6: =SUM(I4:I5) -> 2 | M6: =SUM(M4:M5) -> 2 | Q6: 3/7 | R6: 1/2 | S6: 2/5 | V6: 42.9 %
B7: Ikä ensimmäisessä ottelussa | C7: 25 v 0 kk 4 pv
B9: B-TYTÖT | C9: Itä - Länsi, tulos | D9: Joukkue | E9: Seura | G9: V | H9: T | I9: H | J9: Up. | K9: Lj. | L9: Palk. | M9: O | N9: K | O9: L | P9: T | Q9: KL | R9: 1 | S9: 2 | T9: 3 | U9: k | V9: KL-% | W9: Pelinjohtaja | X9: Yleisöä
B10: 20.06. 2004 Hyvinkää | C10: 2-1 (5-6, 15-1, 0-0, 2-1) | D10: Länsi | E10: Virkiä | I10: 1 | K10: jok | M10: 1 | O10: 1 | P10: 1 | Q10: 1/4 | S10: 0/1 | U10: 1/3 | V10: 25.0 % | W10: Marko Ruuskanen | X10: 1380
B11: 24.07. 2005 Oulu | C11: 0-1 (4-4, 3-6) | D11: Länsi | E11: Virkiä | G11: 1 | K11: jok | M11: 1 | P11: 1 | Q11: 5/7 | T11: 5/6 | U11: 0/1 | V11: 71.4 % | W11: Juha Liljamo | X11: 1068
B12: Yhteensä | G12: =SUM(G10:G11) -> 1 | I12: =SUM(I10:I11) -> 1 | M12: =SUM(M10:M11) -> 2 | O12: 1 | P12: 2 | Q12: 6/11 | S12: 0/1 | T12: 5/6 | U12: 1/4 | V12: 54.5 %
B14: LIITTO - LEHDISTÖ - KORTTI
B15: NAISET | C15: Tulos | D15: Joukkue | E15: Seura | G15: V | H15: T | I15: H | J15: Up. | K15: Lj. | L15: Palk. | M15: O | N15: K | O15: L | P15: T | Q15: KL | R15: 1 | S15: 2 | T15: 3 | U15: k | V15: KL-% | W15: Pelinjohtaja | X15: Yleisöä
B16: 19.06. 2012 Turku | C16: 1-0 (3-0, 2-2) | D16: Lehdistö | E16: Pesä Ysit | I16: 1 | J16: L | K16: 9 | L16: I p | M16: 1 | Q16: 1/5 | R16: 0/3 | S16: 1/1 | T16: 0/1 | V16: 20.0 % | W16: Jussi Viljanen | X16: 755
B17: Ikä ensimmäisessä ottelussa | C17: 25 v 11 kk 0 pv
